[Event "44th Chess Olympiad Women 2022"]
[Site "Chennai"]
[Date "2022.08.07"]
[Round "9.24"]
[White "Koljevic, Nikolina"]
[Black "Berke, Ana"]
[Result "1-0"]
[WhiteElo "2014"]
[BlackElo "2163"]
[Annotator "ChessBase"]
[PlyCount "77"]
[EventDate "2022.??.??"]
[TimeControl "60"]

1. e4 {[%emt 0:00:02]} c5 {[%emt 0:00:11]} 2. Nf3 {[%emt 0:00:08]} d6 {[%emt 0:
00:00]} 3. d4 {[%emt 0:00:24]} cxd4 {[%emt 0:00:07]} 4. Nxd4 {[%emt 0:00:40]}
Nf6 {[%emt 0:01:56]} 5. Nc3 {[%emt 0:00:26]} Nc6 {[%emt 0:00:24]} 6. g3 {
[%emt 0:00:50]} e5 {[%emt 0:04:31]} 7. Nb3 {[%emt 0:03:15]} h6 {[%emt 0:00:16]}
8. h3 {[%emt 0:00:31]} Be6 {[%emt 0:02:04]} 9. Bg2 {[%emt 0:00:59]} Bc4 {
[%emt 0:05:26]} 10. Be3 {[%emt 0:08:14]} a5 {[%emt 0:02:53]} 11. Nd2 {[%emt 0:
00:00]} Ba6 {[%emt 0:04:13]} 12. Nd5 {[%emt 0:00:27]} Nxd5 {[%emt 0:02:38]} 13.
exd5 {[%emt 0:00:03]} Nd4 {[%emt 0:01:34]} 14. Bxd4 {[%emt 0:04:41]} exd4 {
[%emt 0:00:08]} 15. Qg4 {[%emt 0:00:26]} Be7 {[%emt 0:03:21]} 16. Qxg7 {
[%emt 0:07:37]} Bf6 {[%emt 0:03:28]} 17. Qg4 {[%emt 0:00:04]} Rc8 {[%emt 0:00:
00]} 18. Be4 {[%emt 0:04:12]} Kf8 {[%emt 0:06:42]} 19. Qf5 {[%emt 0:05:36]} Rg8
{[%emt 0:10:10]} 20. h4 {[%emt 0:03:23]} a4 {[%emt 0:03:56]} 21. Bd3 {[%emt 0:
00:00]} a3 {[%emt 0:04:46]} 22. Bxa6 {[%emt 0:09:49]} bxa6 {[%emt 0:05:39]} 23.
Rb1 {[%emt 0:03:52]} axb2 {[%emt 0:02:33]} 24. O-O {[%emt 0:04:04]} Bxh4 {
[%emt 0:03:22]} 25. Rxb2 {[%emt 0:01:43]} Bxg3 {[%emt 0:14:28]} 26. fxg3 {
[%emt 0:00:07]} Rxg3+ {[%emt 0:00:07]} 27. Kf2 {[%emt 0:00:05]} Rg5 {[%emt 0:
00:00]} 28. Qf4 {[%emt 0:04:08]} Qd7 {[%emt 0:02:44]} 29. Ke2 {[%emt 0:02:18]}
Re8+ {[%emt 0:04:37]} 30. Kd1 {[%emt 0:00:58]} Qe7 {[%emt 0:03:32]} 31. Ne4 {
[%emt 0:03:58]} Rg6 {[%emt 0:00:57]} 32. Rb6 {[%emt 0:03:34]} d3 {[%emt 0:00:
00]} 33. cxd3 {[%emt 0:00:32]} Kg8 {[%emt 0:00:27]} 34. Nf6+ {[%emt 0:03:08]}
Rxf6 {[%emt 0:00:42]} 35. Qxf6 {[%emt 0:00:01]} Qe2+ {[%emt 0:00:18]} 36. Kc1 {
[%emt 0:00:02]} Qe3+ {[%emt 0:01:36]} 37. Kc2 {[%emt 0:00:22]} Qc5+ {[%emt 0:
00:00]} 38. Kd1 {[%emt 0:01:31]} Rf8 {[%emt 0:00:35]} 39. d4 {[%emt 0:03:39]}
1-0

[Event "44th Chess Olympiad Women 2022"]
[Site "Chennai"]
[Date "2022.08.07"]
[Round "9.24"]
[White "Medic, Mirjana"]
[Black "Milovic, Aleksandra"]
[Result "1/2-1/2"]
[WhiteElo "2194"]
[BlackElo "2129"]
[Annotator "RC"]
[PlyCount "115"]
[EventDate "2022.??.??"]
[TimeControl "60"]

1. d4 {[%emt 0:00:02]} Nf6 {[%emt 0:00:10]} 2. c4 {[%emt 0:00:20]} e6 {[%emt 0:
00:00]} 3. Nf3 {[%emt 0:00:41]} b6 {[%emt 0:00:36]} 4. g3 {[%emt 0:01:09]} Bb7
{[%emt 0:02:11]} 5. Bg2 {[%emt 0:00:08]} Bb4+ {[%emt 0:00:10]} 6. Nbd2 {
[%emt 0:01:17]} c5 {[%emt 0:01:54]} 7. dxc5 {[%emt 0:01:59]} Bxc5 {[%emt 0:00:
00]} 8. O-O {[%emt 0:00:24]} O-O {[%emt 0:00:10]} 9. a3 {[%emt 0:04:39]} d5 {
[%emt 0:06:30]} 10. b4 {[%emt 0:06:21]} Be7 {[%emt 0:01:11]} 11. Bb2 {[%emt 0:
00:00]} Nbd7 {[%emt 0:04:27]} 12. Re1 {[%emt 0:04:45]} a5 {[%emt 0:03:44]} 13.
cxd5 {[%emt 0:03:49]} axb4 {[%emt 0:20:04]} 14. axb4 {[%emt 0:01:11]} Nxd5 {
[%emt 0:03:03]} 15. b5 {[%emt 0:02:52]} Nc5 {[%emt 0:06:00]} 16. Ne5 {[%emt 0:
00:00]} Bf6 {[%emt 0:08:20]} 17. Ndc4 {[%emt 0:01:39]} Qc7 {[%emt 0:03:57]} 18.
e4 {[%emt 0:11:25]} Ne7 {[%emt 0:08:48]} 19. Qe2 {[%emt 0:03:31]} Ng6 {[%emt 0:
00:00]} 20. f4 {[%emt 0:02:27]} Rfd8 {[%emt 0:03:28]} 21. Qe3 {[%emt 0:06:52]}
Be7 {[%emt 0:05:44]} 22. Nxg6 {[%emt 0:09:10]} hxg6 {[%emt 0:00:22]} 23. Be5 {
[%emt 0:00:10]} Qd7 {[%emt 0:02:20]} 24. Nxb6 {[%emt 0:01:25]} Qxb5 {[%emt 0:
00:00]} 25. Rab1 {[%emt 0:01:24]} Qc6 {[%emt 0:09:38]} 26. Nxa8 {[%emt 0:03:00]
} Rxa8 {[%emt 0:00:05]} 27. Qc3 {[%emt 0:05:33]} f5 {[%emt 0:01:43]} 28. Bxg7 {
[%emt 0:01:52]} Nxe4 {[%emt 0:00:39]} 29. Qxc6 {[%emt 0:00:48]} Bxc6 {[%emt 0:
00:00]} 30. Bd4 {[%emt 0:00:25]} g5 {[%emt 0:00:20]} 31. fxg5 {[%emt 0:07:55]}
Bxg5 {[%emt 0:00:28]} 32. Be5 {[%emt 0:00:09]} Be7 {[%emt 0:01:17]} 33. Bxe4 {
[%emt 0:00:44]} Bxe4 {[%emt 0:00:13]} 34. Rb8+ {[%emt 0:00:11]} Rxb8 {[%emt 0:
00:00]} 35. Bxb8 {[%emt 0:00:04]} Bc5+ {[%emt 0:00:10]} 36. Kf1 {[%emt 0:00:09]
} Bd3+ {[%emt 0:00:58]} 37. Kg2 {[%emt 0:00:15]} Be4+ {[%emt 0:00:05]} 38. Kh3
{[%emt 0:00:31]} Kf7 {[%emt 0:00:26]} 39. Be5 {[%emt 0:00:52]} Kg6 {[%emt 0:00:
00]} 40. Rc1 {[%emt 0:00:32]} Be3 {[%emt 0:01:16]} 41. Rc7 {[%emt 0:30:12]} Bh6
{[%emt 0:01:27]} 42. Rc8 {[%emt 0:00:00]} Bf3 {[%emt 0:05:01]} 43. Rg8+ {
[%emt 0:00:00]} Kf7 {[%emt 0:00:32]} 44. Rb8 {[%emt 0:00:00]} Kg6 {[%emt 0:00:
00]} 45. Rb6 {[%emt 0:00:00]} Bd5 {[%emt 0:00:50]} 46. Bf4 {[%emt 0:00:00]} Bg7
{[%emt 0:00:20]} 47. g4 {[%emt 0:00:00]} Bd4 {[%emt 0:00:29]} 48. Ra6 {[%emt 0:
00:00]} Bc4 {[%emt 0:02:25]} 49. Rd6 {[%emt 0:00:00]} Bf6 {[%emt 0:01:30]} 50.
Kg3 {[%emt 0:00:00]} fxg4 {[%emt 0:00:20]} 51. Kxg4 {[%emt 0:00:00]} Be2+ {
[%emt 0:00:08]} 52. Kg3 {[%emt 0:00:00]} Kf5 {[%emt 0:00:18]} 53. Rd2 {[%emt 0:
00:00]} Bh5 {[%emt 0:02:25]} 54. Rf2 {[%emt 0:00:00]} Ke4 {[%emt 0:00:43]} 55.
Bc1 {[%emt 0:00:00]} Bc3 {[%emt 0:02:56]} 56. Kh4 {[%emt 0:00:00]} Be1 {
[%emt 0:01:07]} 57. Kxh5 {[%emt 0:00:00]} Bxf2 {[%emt 0:00:07]} 58. Kg4 {
[%emt 0:00:00]} 1/2-1/2

[Event "44th Chess Olympiad Women 2022"]
[Site "Chennai"]
[Date "2022.08.07"]
[Round "9.24"]
[White "Mosurovic, Milena"]
[Black "Ivekovic, Tihana"]
[Result "0-1"]
[WhiteElo "1452"]
[BlackElo "2082"]
[Annotator "NA RC"]
[PlyCount "92"]
[EventDate "2022.??.??"]
[TimeControl "60"]

1. e4 {[%emt 0:00:02]} e6 {[%emt 0:00:04]} 2. d3 {[%emt 0:00:06]} d5 {[%emt 0:
00:00]} 3. Nd2 {[%emt 0:00:05]} c5 {[%emt 0:00:10]} 4. Ngf3 {[%emt 0:00:13]}
Bd6 {[%emt 0:00:14]} 5. g3 {[%emt 0:00:08]} Nc6 {[%emt 0:00:05]} 6. Bg2 {
[%emt 0:00:06]} Nge7 {[%emt 0:00:05]} 7. O-O {[%emt 0:00:08]} O-O {[%emt 0:00:
00]} 8. Re1 {[%emt 0:00:13]} Qc7 {[%emt 0:00:21]} 9. c3 {[%emt 0:04:21]} d4 {
[%emt 0:04:24]} 10. cxd4 {[%emt 0:06:21]} cxd4 {[%emt 0:04:33]} 11. Nc4 {
[%emt 0:01:02]} e5 {[%emt 0:00:39]} 12. Nxd6 {[%emt 0:07:15]} Qxd6 {[%emt 0:00:
00]} 13. Nh4 {[%emt 0:03:26]} Bd7 {[%emt 0:05:33]} 14. f4 {[%emt 0:05:43]} Rac8
{[%emt 0:03:59]} 15. fxe5 {[%emt 0:01:23]} Nxe5 {[%emt 0:01:09]} 16. Bf4 {
[%emt 0:01:16]} f6 {[%emt 0:00:57]} 17. Nf3 {[%emt 0:07:09]} Kh8 {[%emt 0:00:
00]} 18. Qd2 {[%emt 0:06:15]} N7g6 {[%emt 0:04:54]} 19. Bxe5 {[%emt 0:02:39]}
Nxe5 {[%emt 0:00:29]} 20. Rac1 {[%emt 0:05:31]} b6 {[%emt 0:11:09]} 21. Nxe5 {
[%emt 0:04:42]} fxe5 {[%emt 0:00:53]} 22. Rxc8 {[%emt 0:05:51]} Rxc8 {[%emt 0:
00:00]} 23. Rc1 {[%emt 0:01:32]} h6 {[%emt 0:01:21]} 24. Rxc8+ {[%emt 0:01:57]}
Bxc8 {[%emt 0:00:04]} 25. Qc2 {[%emt 0:03:17]} Qc5 {[%emt 0:02:11]} 26. Qxc5 {
[%emt 0:03:02]} bxc5 {[%emt 0:00:03]} 27. Kf2 {[%emt 0:00:27]} Be6 {[%emt 0:00:
00]} 28. b3 {[%emt 0:01:38]} Kg8 {[%emt 0:00:06]} 29. Ke2 {[%emt 0:01:42]} Kf7
{[%emt 0:00:05]} 30. h3 {[%emt 0:01:03]} a5 {[%emt 0:00:04]} 31. Kd2 {[%emt 0:
00:00]} Kf6 {[%emt 0:00:13]} 32. Ke2 {[%emt 0:03:04]} Ke7 {[%emt 0:11:59]} 33.
Kd2 {[%emt 0:01:07]} a4 {[%emt 0:00:42]} 34. Kc2 {[%emt 0:08:37]} axb3+ {
[%emt 0:00:59]} 35. axb3 {[%emt 0:00:06]} Kf6 {[%emt 0:00:04]} 36. Kb2 {
[%emt 0:01:03]} Kg5 {[%emt 0:00:12]} 37. Ka3 {[%emt 0:00:53]} h5 {[%emt 0:00:
00]} 38. Ka4 {[%emt 0:01:10]} h4 {[%emt 0:00:09]} 39. gxh4+ {[%emt 0:00:29]}
Kxh4 {[%emt 0:00:05]} 40. Kb5 {[%emt 0:00:16]} Bxb3 {[%emt 0:00:32]} 41. Kxc5 {
[%emt 0:30:18]} Kg3 {[%emt 0:30:21]} 42. Bh1 {[%emt 0:03:17]} Bc2 {[%emt 0:00:
00]} 43. Kd5 {[%emt 0:00:37]} Kf4 {[%emt 0:00:06]} 44. Kc4 {[%emt 0:01:11]} Ke3
{[%emt 0:00:19]} 45. Kd5 {[%emt 0:01:06]} Bxd3 {[%emt 0:00:05]} 46. Kxe5 {
[%emt 0:00:10]} Be2 {[%emt 0:00:49]} 0-1

[Event "44th Chess Olympiad Women 2022"]
[Site "Chennai"]
[Date "2022.08.07"]
[Round "9.24"]
[White "Radikovic, Anamarija"]
[Black "Bacic, Kristina"]
[Result "1-0"]
[WhiteElo "2099"]
[BlackElo "1866"]
[Annotator "NA"]
[PlyCount "77"]
[EventDate "2022.??.??"]
[TimeControl "60"]

1. e4 {[%emt 0:00:01]} c6 {[%emt 0:00:10]} 2. d4 {[%emt 0:00:05]} d5 {[%emt 0:
00:00]} 3. e5 {[%emt 0:00:03]} c5 {[%emt 0:00:06]} 4. dxc5 {[%emt 0:00:04]} e6
{[%emt 0:00:10]} 5. a3 {[%emt 0:00:06]} Bxc5 {[%emt 0:00:08]} 6. Nf3 {[%emt 0:
00:00]} Ne7 {[%emt 0:00:35]} 7. b4 {[%emt 0:00:23]} Bb6 {[%emt 0:00:08]} 8. Bd3
{[%emt 0:00:10]} Ng6 {[%emt 0:00:15]} 9. O-O {[%emt 0:00:45]} O-O {[%emt 0:00:
00]} 10. Bb2 {[%emt 0:03:26]} a5 {[%emt 0:01:28]} 11. Bxg6 {[%emt 0:04:39]}
hxg6 {[%emt 0:01:17]} 12. Nbd2 {[%emt 0:00:31]} Qe7 {[%emt 0:16:46]} 13. c4 {
[%emt 0:07:50]} axb4 {[%emt 0:01:37]} 14. axb4 {[%emt 0:00:07]} Rxa1 {[%emt 0:
00:00]} 15. Qxa1 {[%emt 0:00:05]} Na6 {[%emt 0:12:09]} 16. c5 {[%emt 0:11:36]}
Bc7 {[%emt 0:00:12]} 17. Ba3 {[%emt 0:03:11]} Qd7 {[%emt 0:08:37]} 18. Rb1 {
[%emt 0:10:17]} Qb5 {[%emt 0:09:10]} 19. Bb2 {[%emt 0:17:42]} Re8 {[%emt 0:00:
00]} 20. Bc3 {[%emt 0:02:20]} b6 {[%emt 0:03:29]} 21. c6 {[%emt 0:07:02]} Qd3 {
[%emt 0:02:45]} 22. Re1 {[%emt 0:02:15]} Nb8 {[%emt 0:07:42]} 23. Nd4 {[%emt 0:
00:00]} Qa6 {[%emt 0:00:59]} 24. b5 {[%emt 0:04:43]} Qxa1 {[%emt 0:00:07]} 25.
Bxa1 {[%emt 0:00:05]} f6 {[%emt 0:00:19]} 26. f4 {[%emt 0:00:33]} g5 {[%emt 0:
00:00]} 27. g3 {[%emt 0:01:00]} gxf4 {[%emt 0:00:06]} 28. gxf4 {[%emt 0:00:04]}
g5 {[%emt 0:00:17]} 29. N4f3 {[%emt 0:06:32]} gxf4 {[%emt 0:03:30]} 30. exf6 {
[%emt 0:00:07]} Kf7 {[%emt 0:02:11]} 31. Kf2 {[%emt 0:04:47]} e5 {[%emt 0:00:
00]} 32. Nxe5+ {[%emt 0:02:03]} Kxf6 {[%emt 0:00:18]} 33. Ng4+ {[%emt 0:01:30]}
Kf7 {[%emt 0:00:34]} 34. Nh6+ {[%emt 0:00:06]} Kf8 {[%emt 0:01:05]} 35. Bg7+ {
[%emt 0:00:07]} Kxg7 {[%emt 0:00:13]} 36. Rxe8 {[%emt 0:00:05]} Kxh6 {[%emt 0:
00:00]} 37. Rxc8 {[%emt 0:00:06]} Bd6 {[%emt 0:02:35]} 38. c7 {[%emt 0:00:49]}
Bc5+ {[%emt 0:00:50]} 39. Kf1 {[%emt 0:00:17]} 1-0

[Event "44th Chess Olympiad Women 2022"]
[Site "Chennai"]
[Date "2022.08.07"]
[Round "9.25"]
[White "Ortez, Andrea"]
[Black "Unuk, Laura"]
[Result "1-0"]
[WhiteElo "1908"]
[BlackElo "2340"]
[Annotator "RC"]
[PlyCount "91"]
[EventDate "2022.??.??"]
[TimeControl "60"]

1. e4 {[%emt 0:00:03]} c6 {[%emt 0:00:19]} 2. d4 {[%emt 0:00:15]} d5 {[%emt 0:
00:00]} 3. exd5 {[%emt 0:00:14]} cxd5 {[%emt 0:00:06]} 4. c4 {[%emt 0:00:15]}
Nf6 {[%emt 0:00:13]} 5. Nc3 {[%emt 0:00:31]} g6 {[%emt 0:00:07]} 6. Qb3 {
[%emt 0:04:01]} Bg7 {[%emt 0:02:16]} 7. cxd5 {[%emt 0:00:49]} O-O {[%emt 0:00:
00]} 8. g3 {[%emt 0:00:59]} b6 {[%emt 0:25:24]} 9. Bg2 {[%emt 0:04:34]} Bb7 {
[%emt 0:02:33]} 10. Nge2 {[%emt 0:03:22]} Na6 {[%emt 0:13:52]} 11. O-O {
[%emt 0:02:57]} Qd7 {[%emt 0:00:29]} 12. a4 {[%emt 0:22:15]} Nc7 {[%emt 0:00:
00]} 13. Nf4 {[%emt 0:07:54]} Rab8 {[%emt 0:02:41]} 14. Re1 {[%emt 0:06:18]}
Rfd8 {[%emt 0:05:21]} 15. Bh3 {[%emt 0:14:19]} Qe8 {[%emt 0:07:26]} 16. a5 {
[%emt 0:09:27]} b5 {[%emt 0:14:37]} 17. Qb4 {[%emt 0:02:48]} Bf8 {[%emt 0:00:
00]} 18. Qc5 {[%emt 0:01:59]} Ncxd5 {[%emt 0:06:58]} 19. Nfxd5 {[%emt 0:02:16]}
Nxd5 {[%emt 0:00:38]} 20. Nxd5 {[%emt 0:05:03]} Bxd5 {[%emt 0:00:08]} 21. Qxa7
{[%emt 0:00:35]} e6 {[%emt 0:02:10]} 22. Qc7 {[%emt 0:01:11]} Bd6 {[%emt 0:00:
00]} 23. Qc2 {[%emt 0:02:14]} Rdc8 {[%emt 0:00:04]} 24. Qd1 {[%emt 0:00:30]}
Rc4 {[%emt 0:01:38]} 25. Bh6 {[%emt 0:02:34]} Qc6 {[%emt 0:01:04]} 26. Qg4 {
[%emt 0:01:51]} Bf8 {[%emt 0:01:11]} 27. Bf4 {[%emt 0:01:46]} Bf3 {[%emt 0:00:
00]} 28. Qg5 {[%emt 0:01:37]} h6 {[%emt 0:00:27]} 29. Qe5 {[%emt 0:00:41]} Rc8
{[%emt 0:01:32]} 30. Qe3 {[%emt 0:00:17]} Bg7 {[%emt 0:00:46]} 31. Be5 {
[%emt 0:00:52]} Bd5 {[%emt 0:01:34]} 32. a6 {[%emt 0:01:23]} Ra8 {[%emt 0:00:
00]} 33. a7 {[%emt 0:00:01]} Qb7 {[%emt 0:00:23]} 34. Bf1 {[%emt 0:00:46]} Rb4
{[%emt 0:01:08]} 35. Qc3 {[%emt 0:00:21]} Rb3 {[%emt 0:00:33]} 36. Qc5 {
[%emt 0:00:37]} Rxb2 {[%emt 0:00:29]} 37. Rec1 {[%emt 0:00:50]} Bh1 {[%emt 0:
00:00]} 38. Bxg7 {[%emt 0:00:33]} Kxg7 {[%emt 0:00:32]} 39. Qe5+ {[%emt 0:00:
00]} Kg8 {[%emt 0:00:21]} 40. d5 {[%emt 0:00:31]} Rd2 {[%emt 0:00:26]} 41. dxe6
{[%emt 0:08:17]} Qf3 {[%emt 0:07:52]} 42. exf7+ {[%emt 0:00:00]} Qxf7 {[%emt 0:
00:00]} 43. Qe3 {[%emt 0:00:00]} Rd7 {[%emt 0:00:36]} 44. Kxh1 {[%emt 0:00:00]}
Raxa7 {[%emt 0:02:46]} 45. Rxa7 {[%emt 0:00:00]} Rxa7 {[%emt 0:00:04]} 46. Qxh6
{[%emt 0:00:00]} 1-0

[Event "44th Chess Olympiad Women 2022"]
[Site "Chennai"]
[Date "2022.08.07"]
[Round "9.25"]
[White "Rozman, Monika"]
[Black "Palacios, Celina"]
[Result "1-0"]
[WhiteElo "2104"]
[BlackElo "1715"]
[Annotator "NA"]
[PlyCount "75"]
[EventDate "2022.??.??"]
[TimeControl "60"]

1. e4 {[%emt 0:00:03]} g6 {[%emt 0:01:15]} 2. d4 {[%emt 0:00:05]} Bg7 {[%emt 0:
00:00]} 3. Nc3 {[%emt 0:00:25]} d6 {[%emt 0:00:25]} 4. Be3 {[%emt 0:00:08]} c6
{[%emt 0:00:33]} 5. Qd2 {[%emt 0:03:41]} Nf6 {[%emt 0:02:27]} 6. Bh6 {[%emt 0:
00:00]} O-O {[%emt 0:01:48]} 7. f3 {[%emt 0:02:02]} b5 {[%emt 0:03:54]} 8.
O-O-O {[%emt 0:02:51]} Qa5 {[%emt 0:02:43]} 9. h4 {[%emt 0:04:19]} b4 {[%emt 0:
00:00]} 10. Nb1 {[%emt 0:00:33]} Bxh6 {[%emt 0:12:03]} 11. Qxh6 {[%emt 0:00:10]
} Qh5 {[%emt 0:01:03]} 12. Qd2 {[%emt 0:02:07]} Qa5 {[%emt 0:04:01]} 13. h5 {
[%emt 0:07:25]} Be6 {[%emt 0:07:33]} 14. Qh6 {[%emt 0:06:27]} Nbd7 {[%emt 0:00:
00]} 15. Bd3 {[%emt 0:01:39]} Rfd8 {[%emt 0:07:17]} 16. Nh3 {[%emt 0:23:40]}
Qxh5 {[%emt 0:05:16]} 17. Qf4 {[%emt 0:01:53]} Qa5 {[%emt 0:03:54]} 18. Ng5 {
[%emt 0:01:35]} Nf8 {[%emt 0:06:07]} 19. e5 {[%emt 0:02:28]} dxe5 {[%emt 0:00:
00]} 20. dxe5 {[%emt 0:00:08]} Nh5 {[%emt 0:08:22]} 21. Qh2 {[%emt 0:03:18]}
Qc5 {[%emt 0:02:27]} 22. Nxe6 {[%emt 0:00:44]} fxe6 {[%emt 0:00:18]} 23. g4 {
[%emt 0:03:29]} Ng7 {[%emt 0:00:33]} 24. Rhe1 {[%emt 0:03:36]} a5 {[%emt 0:00:
00]} 25. Be4 {[%emt 0:02:30]} a4 {[%emt 0:01:32]} 26. Rd2 {[%emt 0:03:29]} b3 {
[%emt 0:02:06]} 27. axb3 {[%emt 0:00:20]} axb3 {[%emt 0:00:06]} 28. c3 {
[%emt 0:02:14]} Rxd2 {[%emt 0:02:24]} 29. Qxd2 {[%emt 0:00:31]} Ra7 {[%emt 0:
00:00]} 30. Qd4 {[%emt 0:02:09]} Ra5 {[%emt 0:01:35]} 31. Qxc5 {[%emt 0:01:54]}
Rxc5 {[%emt 0:00:02]} 32. Nd2 {[%emt 0:00:55]} Rxe5 {[%emt 0:01:02]} 33. Nxb3 {
[%emt 0:00:19]} g5 {[%emt 0:01:52]} 34. Bxh7+ {[%emt 0:01:46]} Kxh7 {[%emt 0:
00:00]} 35. Rxe5 {[%emt 0:00:02]} Nd7 {[%emt 0:00:37]} 36. Ra5 {[%emt 0:01:14]}
Kg6 {[%emt 0:00:34]} 37. Nd2 {[%emt 0:02:00]} Nf6 {[%emt 0:00:33]} 38. Rc5 {
[%emt 0:00:33]} 1-0

[Event "44th Chess Olympiad Women 2022"]
[Site "Chennai"]
[Date "2022.08.07"]
[Round "9.25"]
[White "Urh, Zala"]
[Black "Garcia, Angie"]
[Result "1-0"]
[WhiteElo "2321"]
[BlackElo "1894"]
[Annotator "RC"]
[PlyCount "49"]
[EventDate "2022.??.??"]
[TimeControl "60"]

1. d4 {[%emt 0:00:01]} Nf6 {[%emt 0:00:14]} 2. c4 {[%emt 0:00:05]} g6 {[%emt 0:
00:00]} 3. Nc3 {[%emt 0:00:04]} Bg7 {[%emt 0:00:12]} 4. e4 {[%emt 0:00:05]} d6
{[%emt 0:00:06]} 5. Be2 {[%emt 0:00:03]} O-O {[%emt 0:00:09]} 6. Be3 {[%emt 0:
00:00]} Nbd7 {[%emt 0:01:55]} 7. Qc2 {[%emt 0:03:32]} c5 {[%emt 0:01:49]} 8. d5
{[%emt 0:00:55]} Ne5 {[%emt 0:00:28]} 9. h3 {[%emt 0:04:06]} Qa5 {[%emt 0:00:
00]} 10. f4 {[%emt 0:17:32]} Nxe4 {[%emt 0:07:43]} 11. fxe5 {[%emt 0:01:51]}
Ng3 {[%emt 0:00:11]} 12. Rh2 {[%emt 0:03:29]} Bxe5 {[%emt 0:00:06]} 13. Nf3 {
[%emt 0:01:09]} Nxe2 {[%emt 0:01:08]} 14. Kxe2 {[%emt 0:00:07]} Bxh2 {[%emt 0:
00:00]} 15. Nxh2 {[%emt 0:00:03]} e5 {[%emt 0:02:29]} 16. Bh6 {[%emt 0:02:00]}
Re8 {[%emt 0:02:23]} 17. Ne4 {[%emt 0:05:09]} Bf5 {[%emt 0:02:48]} 18. Nf6+ {
[%emt 0:11:15]} Kh8 {[%emt 0:00:08]} 19. Qd2 {[%emt 0:00:28]} Qxd2+ {[%emt 0:
00:00]} 20. Kxd2 {[%emt 0:00:03]} Re7 {[%emt 0:00:36]} 21. g4 {[%emt 0:01:23]}
Bc8 {[%emt 0:06:00]} 22. Nf1 {[%emt 0:02:17]} b5 {[%emt 0:01:14]} 23. Ng3 {
[%emt 0:02:58]} Rb7 {[%emt 0:01:05]} 24. Rg1 {[%emt 0:01:44]} bxc4 {[%emt 0:00:
00]} 25. Ngh5 {[%emt 0:01:52]} 1-0

[Event "44th Chess Olympiad Women 2022"]
[Site "Chennai"]
[Date "2022.08.07"]
[Round "9.25"]
[White "Zavala Galindo, Alejandra Beatriz"]
[Black "Janzelj, Lara"]
[Result "0-1"]
[WhiteElo "1748"]
[BlackElo "2215"]
[Annotator "RC"]
[PlyCount "74"]
[EventDate "2022.??.??"]
[TimeControl "60"]

1. e4 {[%emt 0:00:05]} d6 {[%emt 0:00:09]} 2. d4 {[%emt 0:00:18]} Nf6 {[%emt 0:
00:00]} 3. Nc3 {[%emt 0:00:39]} e5 {[%emt 0:00:10]} 4. Bc4 {[%emt 0:02:25]}
Nbd7 {[%emt 0:00:52]} 5. Nf3 {[%emt 0:00:45]} Be7 {[%emt 0:00:08]} 6. O-O {
[%emt 0:08:38]} O-O {[%emt 0:00:29]} 7. Bg5 {[%emt 0:07:57]} c6 {[%emt 0:00:51]
} 8. a4 {[%emt 0:07:36]} Qc7 {[%emt 0:02:11]} 9. Nh4 {[%emt 0:05:35]} Nb6 {
[%emt 0:09:29]} 10. Ba2 {[%emt 0:02:45]} h6 {[%emt 0:00:29]} 11. Be3 {[%emt 0:
00:00]} Nxe4 {[%emt 0:03:41]} 12. Nxe4 {[%emt 0:01:37]} Bxh4 {[%emt 0:01:57]}
13. dxe5 {[%emt 0:01:20]} dxe5 {[%emt 0:10:56]} 14. Qh5 {[%emt 0:13:23]} Bd8 {
[%emt 0:03:44]} 15. Bxh6 {[%emt 0:03:26]} Nd5 {[%emt 0:01:52]} 16. Bg5 {
[%emt 0:03:19]} Bxg5 {[%emt 0:02:09]} 17. Nxg5 {[%emt 0:00:23]} Bf5 {[%emt 0:
00:00]} 18. Bb3 {[%emt 0:07:45]} Bg6 {[%emt 0:04:30]} 19. Qf3 {[%emt 0:01:12]}
Qe7 {[%emt 0:01:24]} 20. h4 {[%emt 0:02:37]} Rad8 {[%emt 0:03:18]} 21. Rfe1 {
[%emt 0:08:09]} Nf6 {[%emt 0:02:02]} 22. Qc3 {[%emt 0:03:37]} Rfe8 {[%emt 0:00:
00]} 23. Rad1 {[%emt 0:02:25]} Rd7 {[%emt 0:04:51]} 24. Rxd7 {[%emt 0:01:05]}
Qxd7 {[%emt 0:00:15]} 25. Nf3 {[%emt 0:04:56]} Ne4 {[%emt 0:07:03]} 26. Qe3 {
[%emt 0:03:20]} b6 {[%emt 0:06:02]} 27. h5 {[%emt 0:00:36]} Bh7 {[%emt 0:01:35]
} 28. h6 {[%emt 0:00:36]} Qf5 {[%emt 0:02:00]} 29. hxg7 {[%emt 0:00:36]} Nc5 {
[%emt 0:02:06]} 30. Ng5 {[%emt 0:00:50]} Nxb3 {[%emt 0:00:44]} 31. cxb3 {
[%emt 0:00:42]} Bg6 {[%emt 0:00:32]} 32. f4 {[%emt 0:00:21]} f6 {[%emt 0:04:18]
} 33. Nh3 {[%emt 0:00:35]} exf4 {[%emt 0:00:32]} 34. Qc3 {[%emt 0:00:13]} Rxe1+
{[%emt 0:01:13]} 35. Qxe1 {[%emt 0:00:05]} Kxg7 {[%emt 0:03:45]} 36. Qe7+ {
[%emt 0:00:14]} Bf7 {[%emt 0:00:05]} 37. Qxa7 {[%emt 0:00:10]} f3 {[%emt 0:00:
00]} 0-1

[Event "44th Chess Olympiad Women 2022"]
[Site "Chennai"]
[Date "2022.08.07"]
[Round "9.26"]
[White "Argote Heredia, Valentina"]
[Black "Petrenko, Svetlana"]
[Result "1-0"]
[WhiteElo "2205"]
[BlackElo "2029"]
[Annotator "RC"]
[PlyCount "91"]
[EventDate "2022.??.??"]
[TimeControl "60"]

1. e4 {[%emt 0:00:23]} c5 {[%emt 0:00:07]} 2. Nf3 {[%emt 0:00:13]} e6 {[%emt 0:
00:00]} 3. d4 {[%emt 0:00:05]} cxd4 {[%emt 0:00:07]} 4. Nxd4 {[%emt 0:00:07]}
a6 {[%emt 0:00:06]} 5. c4 {[%emt 0:00:05]} Qc7 {[%emt 0:00:13]} 6. a3 {[%emt 0:
00:00]} Nc6 {[%emt 0:00:46]} 7. Nc3 {[%emt 0:02:25]} Nf6 {[%emt 0:03:00]} 8.
Be3 {[%emt 0:05:02]} b6 {[%emt 0:04:22]} 9. Rc1 {[%emt 0:00:27]} Nxd4 {[%emt 0:
00:00]} 10. Bxd4 {[%emt 0:00:26]} Bd6 {[%emt 0:05:14]} 11. g3 {[%emt 0:05:06]}
Bb7 {[%emt 0:06:10]} 12. Bg2 {[%emt 0:00:24]} Be5 {[%emt 0:02:08]} 13. O-O {
[%emt 0:09:52]} d6 {[%emt 0:12:34]} 14. Na4 {[%emt 0:09:35]} Nd7 {[%emt 0:00:
00]} 15. b4 {[%emt 0:01:26]} O-O {[%emt 0:09:44]} 16. Bxe5 {[%emt 0:06:12]}
dxe5 {[%emt 0:14:07]} 17. c5 {[%emt 0:02:22]} b5 {[%emt 0:00:29]} 18. Nc3 {
[%emt 0:02:17]} Rfd8 {[%emt 0:01:39]} 19. Qh5 {[%emt 0:08:26]} Nf6 {[%emt 0:00:
00]} 20. Qg5 {[%emt 0:05:15]} h6 {[%emt 0:02:23]} 21. Qe3 {[%emt 0:00:04]} Rd4
{[%emt 0:05:36]} 22. Ne2 {[%emt 0:00:31]} Rd7 {[%emt 0:02:08]} 23. Rfd1 {
[%emt 0:03:38]} Rxd1+ {[%emt 0:04:16]} 24. Rxd1 {[%emt 0:00:05]} Rd8 {[%emt 0:
00:00]} 25. Re1 {[%emt 0:13:41]} Ng4 {[%emt 0:04:30]} 26. Qc3 {[%emt 0:04:09]}
Nf6 {[%emt 0:00:42]} 27. Nc1 {[%emt 0:05:57]} Rd4 {[%emt 0:02:52]} 28. Nb3 {
[%emt 0:00:04]} Nxe4 {[%emt 0:05:50]} 29. Qb2 {[%emt 0:03:59]} Rc4 {[%emt 0:00:
00]} 30. Na5 {[%emt 0:00:18]} Rd4 {[%emt 0:00:39]} 31. c6 {[%emt 0:00:54]} Rd2
{[%emt 0:02:16]} 32. Qc1 {[%emt 0:03:34]} Qb6 {[%emt 0:00:26]} 33. Qxd2 {
[%emt 0:00:02]} Nxd2 {[%emt 0:00:07]} 34. cxb7 {[%emt 0:00:06]} Qc7 {[%emt 0:
00:00]} 35. Rd1 {[%emt 0:00:45]} Nc4 {[%emt 0:00:25]} 36. Nxc4 {[%emt 0:00:20]}
bxc4 {[%emt 0:00:02]} 37. Rc1 {[%emt 0:00:57]} Kh7 {[%emt 0:01:21]} 38. Rxc4 {
[%emt 0:00:34]} Qxc4 {[%emt 0:00:03]} 39. b8=Q {[%emt 0:00:09]} Qc1+ {[%emt 0:
00:00]} 40. Bf1 {[%emt 0:00:02]} Qxa3 {[%emt 0:00:15]} 41. Qb6 {[%emt 0:30:54]}
e4 {[%emt 0:04:55]} 42. Bxa6 {[%emt 0:00:00]} e5 {[%emt 0:00:15]} 43. Bf1 {
[%emt 0:00:00]} Qa1 {[%emt 0:07:18]} 44. b5 {[%emt 0:00:00]} Qb1 {[%emt 0:00:
00]} 45. Qc7 {[%emt 0:00:00]} f6 {[%emt 0:00:14]} 46. b6 {[%emt 0:00:00]} 1-0